[Event "Manhemjunioren 2024"]
[Site "Goteborgs Schackcentrum, Vegatan 20, Gothenburg, Sweden"]
[Date "2024.04.06"]
[Round "4.7"]
[White "Madevan Vaishnavi, Yaashvan"]
[Black "Sivarama, Saadhvik"]
[Result "1-0"]
[TimeControl "18 minutes + 10 seconds per move from move one."]
[WhiteFideId "1772180"]
[BlackFideId "1773720"]
[WhiteElo "1670"]
[BlackElo "1566"]

1. e4 {[%clk 00:18:19]} c5 {[%clk 00:18:18]} {[%emt 00:00:03]} 2. c3 {[%clk
00:18:28]} {[%emt 00:00:02]} d6 {[%clk 00:18:16]} {[%emt 00:00:11]} 3. d4
{[%clk 00:18:27]} {[%emt 00:00:10]} cxd4 {[%clk 00:18:21]} {[%emt 00:00:06]} 4.
cxd4 {[%clk 00:18:36]} {[%emt 00:00:01]} Nc6 {[%clk 00:18:30]} {[%emt
00:00:01]} 5. Nf3 {[%clk 00:18:44]} {[%emt 00:00:02]} Nf6 {[%clk 00:18:38]}
{[%emt 00:00:02]} 6. Nc3 {[%clk 00:18:53]} {[%emt 00:00:01]} g6 {[%clk
00:18:39]} {[%emt 00:00:09]} 7. Be3 {[%clk 00:19:01]} {[%emt 00:00:02]} Bg7
{[%clk 00:18:47]} {[%emt 00:00:02]} 8. Be2 {[%clk 00:19:08]} {[%emt 00:00:03]}
O-O {[%clk 00:18:53]} {[%emt 00:00:03]} 9. O-O {[%clk 00:19:15]} {[%emt
00:00:03]} Ng4 {[%clk 00:18:23]} {[%emt 00:00:39]} 10. Bg5 {[%clk 00:18:39]}
{[%emt 00:00:46]} h6 {[%clk 00:17:42]} {[%emt 00:00:51]} 11. Bd2 {[%clk
00:18:19]} {[%emt 00:00:31]} Nf6 {[%clk 00:17:28]} {[%emt 00:00:24]} 12. Rc1
{[%clk 00:17:49]} {[%emt 00:00:40]} Bg4 {[%clk 00:16:38]} {[%emt 00:00:59]} 13.
Be3 {[%clk 00:17:46]} {[%emt 00:00:14]} Bxf3 {[%clk 00:16:00]} {[%emt
00:00:47]} 14. Bxf3 {[%clk 00:17:54]} {[%emt 00:00:03]} Nd7 {[%clk 00:15:42]}
{[%emt 00:00:28]} 15. Qd2 {[%clk 00:17:50]} {[%emt 00:00:13]} h5 {[%clk
00:15:43]} {[%emt 00:00:09]} 16. Rfd1 {[%clk 00:16:25]} {[%emt 00:01:36]} Nb6
{[%clk 00:15:08]} {[%emt 00:00:45]} 17. b3 {[%clk 00:14:24]} {[%emt 00:02:12]}
Rc8 {[%clk 00:14:38]} {[%emt 00:00:39]} 18. Ne2 {[%clk 00:14:10]} {[%emt
00:00:24]} Qd7 {[%clk 00:13:42]} {[%emt 00:01:06]} 19. Bh6 {[%clk 00:14:10]}
{[%emt 00:00:09]} Kh7 {[%clk 00:13:20]} {[%emt 00:00:32]} 20. Bxg7 {[%clk
00:14:09]} {[%emt 00:00:05]} Kxg7 {[%clk 00:13:27]} {[%emt 00:00:09]} 21. Rc3
{[%clk 00:11:21]} {[%emt 00:02:59]} Kh7 {[%clk 00:12:33]} {[%emt 00:01:03]} 22.
Bxh5 {[%clk 00:08:43]} {[%emt 00:02:48]} gxh5 {[%clk 00:12:19]} {[%emt
00:00:24]} 23. Rh3 {[%clk 00:08:51]} {[%emt 00:00:03]} Qg4 {[%clk 00:12:01]}
{[%emt 00:00:27]} 24. f3 {[%clk 00:08:36]} {[%emt 00:00:25]} Qg6 {[%clk
00:09:39]} {[%emt 00:02:32]} 25. Nf4 {[%clk 00:08:38]} {[%emt 00:00:08]} Qf6
{[%clk 00:09:15]} {[%emt 00:00:34]} 26. Nxh5 {[%clk 00:08:18]} {[%emt
00:00:31]} Qxd4+ {[%clk 00:06:50]} {[%emt 00:02:35]} 27. Qxd4 {[%clk 00:08:21]}
{[%emt 00:00:06]} Nxd4 {[%clk 00:06:56]} {[%emt 00:00:04]} 28. Rxd4 {[%clk
00:06:51]} {[%emt 00:01:41]} Rc1+ {[%clk 00:06:49]} {[%emt 00:00:17]} 29. Kf2
{[%clk 00:06:55]} {[%emt 00:00:06]} Rc2+ {[%clk 00:06:56]} {[%emt 00:00:04]} 30.
Ke3 {[%clk 00:06:47]} {[%emt 00:00:17]} Rxa2 {[%clk 00:06:39]} {[%emt
00:00:26]} 31. Ng3+ {[%clk 00:05:55]} {[%emt 00:01:02]} Kg6 {[%clk 00:05:53]}
{[%emt 00:00:56]} 32. Nf5 {[%clk 00:05:55]} {[%emt 00:00:11]} f6 {[%clk
00:02:39]} {[%emt 00:03:23]} 33. Nxe7+ {[%clk 00:04:35]} {[%emt 00:01:30]} Kf7
{[%clk 00:02:36]} {[%emt 00:00:12]} 34. Rh7+ {[%clk 00:04:22]} {[%emt
00:00:24]} Ke6 {[%clk 00:02:32]} {[%emt 00:00:13]} 35. Nf5 {[%clk 00:04:20]}
{[%emt 00:00:13]} Nc8 {[%clk 00:01:06]} {[%emt 00:01:36]} 36. Rxd6+ {[%emt
00:00:27]} Nxd6 {[%clk 00:00:45]} {[%emt 00:00:12]} 37. Re7# {[%clk 00:04:30]}
{[%emt 00:00:03]} 1-0

[Event "Manhemjunioren 2024"]
[Site "Goteborgs Schackcentrum, Vegatan 20, Gothenburg, Sweden"]
[Date "2024.04.06"]
[Round "5.1"]
[White "Kaplan, Viktor"]
[Black "Yang, Mandi"]
[Result "1/2-1/2"]
[TimeControl "18 minutes + 10 seconds per move from move one."]
[WhiteFideId "1780956"]
[BlackFideId "1774778"]
[WhiteElo "1596"]
[BlackElo "1738"]

1. d4 {[%clk 00:18:19]} {[%emt 00:00:01]} Nf6 {[%clk 00:18:19]} {[%emt
00:00:01]} 2. c4 {[%clk 00:18:29]} c6 {[%clk 00:18:28]} 3. Nc3 {[%clk
00:18:38]} {[%emt 00:00:01]} d5 {[%clk 00:18:34]} {[%emt 00:00:04]} 4. Nf3
{[%clk 00:18:47]} {[%emt 00:00:01]} e6 {[%clk 00:18:41]} {[%emt 00:00:02]} 5.
Bg5 {[%clk 00:18:55]} {[%emt 00:00:01]} Nbd7 {[%clk 00:18:49]} {[%emt
00:00:03]} 6. e3 {[%clk 00:19:04]} {[%emt 00:00:02]} Qa5 {[%clk 00:18:56]}
{[%emt 00:00:02]} 7. Nd2 {[%clk 00:19:13]} {[%emt 00:00:01]} dxc4 {[%clk
00:19:01]} {[%emt 00:00:06]} 8. Bxf6 {[%clk 00:19:21]} {[%emt 00:00:02]} Nxf6
{[%clk 00:19:09]} {[%emt 00:00:02]} 9. Nxc4 {[%clk 00:19:14]} {[%emt 00:00:17]}
Qc7 {[%clk 00:19:17]} {[%emt 00:00:01]} 10. e4 {[%clk 00:19:03]} {[%emt
00:00:21]} Bb4 {[%clk 00:19:25]} {[%emt 00:00:02]} 11. Bd3 {[%clk 00:19:02]}
{[%emt 00:00:10]} O-O {[%clk 00:19:05]} {[%emt 00:00:30]} 12. a3 {[%clk
00:18:37]} {[%emt 00:00:35]} Be7 {[%clk 00:17:55]} {[%emt 00:01:20]} 13. e5
{[%clk 00:17:12]} {[%emt 00:01:35]} Nd5 {[%clk 00:18:03]} {[%emt 00:00:01]} 14.
Ne4 {[%clk 00:17:12]} {[%emt 00:00:10]} c5 {[%clk 00:16:57]} {[%emt 00:01:17]}
15. O-O {[%clk 00:15:56]} {[%emt 00:01:27]} cxd4 {[%clk 00:17:02]} {[%emt
00:00:05]} 16. Rc1 {[%clk 00:15:19]} {[%emt 00:00:46]} Qb8 {[%clk 00:15:12]}
{[%emt 00:02:00]} 17. f4 {[%clk 00:14:29]} {[%emt 00:01:00]} Ne3 {[%clk
00:13:27]} {[%emt 00:01:56]} 18. Nxe3 {[%clk 00:14:05]} {[%emt 00:00:33]} dxe3
{[%clk 00:13:35]} {[%emt 00:00:02]} 19. Qh5 {[%clk 00:13:29]} {[%emt 00:00:45]}
g6 {[%clk 00:09:36]} {[%emt 00:04:10]} 20. Qh6 {[%clk 00:12:26]} {[%emt
00:01:13]} f6 {[%clk 00:08:39]} {[%emt 00:01:06]} 21. Ng5 {[%clk 00:06:07]}
{[%emt 00:06:29]} fxg5 {[%clk 00:08:30]} {[%emt 00:00:16]} 22. Bxg6 {[%clk
00:06:10]} {[%emt 00:00:10]} hxg6 {[%clk 00:08:30]} {[%emt 00:00:10]} 23. Qxg6+
{[%clk 00:05:56]} {[%emt 00:00:24]} Kh8 {[%clk 00:08:37]} {[%emt 00:00:03]} 24.
Qh6+ {[%clk 00:05:28]} {[%emt 00:00:38]} Kg8 {[%clk 00:08:45]} {[%emt
00:00:02]} 25. Qg6+ {[%clk 00:05:37]} Kh8 {[%clk 00:08:53]} {[%emt 00:00:02]}
26. Qh6+ {[%clk 00:05:46]} Kg8 {[%clk 00:09:02]} {[%emt 00:00:01]} 27. Qg6+
{[%clk 00:05:55]} Kh8 {[%clk 00:09:10]} {[%emt 00:00:02]} 28. Qh6+ {[%clk
00:05:58]} 1/2-1/2

[Event "Manhemjunioren 2024"]
[Site "Goteborgs Schackcentrum, Vegatan 20, Gothenburg, Sweden"]
[Date "2024.04.06"]
[Round "5.2"]
[White "Havner, Arvid"]
[Black "Norberg, Arild"]
[Result "1-0"]
[TimeControl "18 minutes + 10 seconds per move from move one."]
[WhiteFideId "1769308"]
[BlackFideId "1774484"]
[WhiteElo "1782"]
[BlackElo "1683"]

1. e4 {[%clk 00:18:19]} e5 {[%clk 00:18:17]} {[%emt 00:00:03]} 2. Nf3 {[%clk
00:18:28]} {[%emt 00:00:02]} Nc6 {[%clk 00:18:22]} {[%emt 00:00:03]} 3. Bb5
{[%clk 00:18:36]} {[%emt 00:00:03]} Bc5 {[%clk 00:18:20]} {[%emt 00:00:12]} 4.
O-O {[%clk 00:18:38]} {[%emt 00:00:08]} d6 {[%clk 00:18:27]} {[%emt 00:00:03]}
5. c3 {[%clk 00:18:45]} {[%emt 00:00:04]} Bd7 {[%emt 00:00:11]} 6. d4 {[%clk
00:18:52]} {[%emt 00:00:02]} exd4 {[%clk 00:18:32]} {[%emt 00:00:06]} 7. cxd4
{[%clk 00:19:00]} {[%emt 00:00:02]} Bb6 {[%clk 00:18:38]} {[%emt 00:00:03]} 8.
Re1 {[%clk 00:18:46]} {[%emt 00:00:23]} Nge7 {[%clk 00:18:45]} {[%emt
00:00:04]} 9. Nc3 {[%clk 00:18:44]} {[%emt 00:00:13]} O-O {[%clk 00:18:39]}
{[%emt 00:00:15]} 10. Be3 {[%clk 00:17:44]} {[%emt 00:01:10]} Bg4 {[%clk
00:18:44]} {[%emt 00:00:05]} 11. Be2 {[%clk 00:17:11]} {[%emt 00:00:43]} Ng6
{[%clk 00:18:30]} {[%emt 00:00:24]} 12. h3 {[%clk 00:17:07]} {[%emt 00:00:14]}
Bxf3 {[%clk 00:18:32]} {[%emt 00:00:08]} 13. Bxf3 {[%clk 00:17:14]} {[%emt
00:00:03]} a6 {[%clk 00:18:10]} {[%emt 00:00:32]} 14. Rc1 {[%clk 00:16:54]}
{[%emt 00:00:31]} Rc8 {[%clk 00:17:56]} {[%emt 00:00:23]} 15. Nd5 {[%clk
00:16:06]} {[%emt 00:00:58]} Ba5 {[%clk 00:17:17]} {[%emt 00:00:50]} 16. Re2
{[%clk 00:15:53]} {[%emt 00:00:22]} Nge7 {[%clk 00:17:13]} {[%emt 00:00:13]} 17.
Bg4 {[%clk 00:15:26]} {[%emt 00:00:39]} f5 {[%clk 00:16:31]} {[%emt 00:00:52]}
18. Nxe7+ {[%clk 00:11:01]} {[%emt 00:04:36]} Nxe7 {[%clk 00:16:36]} {[%emt
00:00:05]} 19. exf5 {[%clk 00:11:05]} {[%emt 00:00:06]} Nxf5 {[%clk 00:16:40]}
{[%emt 00:00:06]} 20. Qb3+ {[%clk 00:08:41]} {[%emt 00:02:34]} Kh8 {[%clk
00:16:10]} {[%emt 00:00:40]} 21. Qd5 {[%clk 00:06:01]} {[%emt 00:02:51]} Nxe3
{[%clk 00:15:57]} {[%emt 00:00:22]} 22. Rxe3 {[%clk 00:05:50]} {[%emt
00:00:10]} Bd2 {[%clk 00:15:37]} {[%emt 00:00:40]} 23. Bxc8 {[%clk 00:05:06]}
{[%emt 00:00:54]} Qxc8 {[%clk 00:15:00]} {[%emt 00:00:47]} 24. Rce1 {[%clk
00:05:02]} {[%emt 00:00:14]} Bxe1 {[%clk 00:14:18]} {[%emt 00:00:52]} 25. Rxe1
{[%clk 00:05:10]} {[%emt 00:00:01]} h6 {[%clk 00:13:35]} {[%emt 00:00:53]} 26.
Re7 {[%clk 00:05:06]} {[%emt 00:00:14]} Qd8 {[%clk 00:12:02]} {[%emt 00:01:44]}
27. Qe6 {[%clk 00:05:11]} {[%emt 00:00:04]} b6 {[%clk 00:12:01]} {[%emt
00:00:11]} 28. d5 {[%clk 00:04:53]} {[%emt 00:00:27]} a5 {[%clk 00:11:56]}
{[%emt 00:00:16]} 29. Kf1 {[%clk 00:04:13]} {[%emt 00:00:49]} Kh7 {[%clk
00:11:04]} {[%emt 00:01:04]} 30. Qe4+ {[%clk 00:04:18]} {[%emt 00:00:04]} Kh8
{[%clk 00:10:57]} {[%emt 00:00:17]} 31. Ke2 {[%clk 00:04:18]} {[%emt 00:00:10]}
Rg8 {[%clk 00:09:32]} {[%emt 00:01:35]} 32. Ke3 {[%clk 00:04:03]} {[%emt
00:00:25]} Rf8 {[%clk 00:09:35]} {[%emt 00:00:08]} 33. g4 {[%clk 00:03:31]}
{[%emt 00:00:41]} Rg8 {[%clk 00:09:27]} {[%emt 00:00:18]} 34. h4 {[%clk
00:03:28]} {[%emt 00:00:13]} Rf8 {[%clk 00:09:08]} {[%emt 00:00:29]} 35. g5
{[%clk 00:03:36]} {[%emt 00:00:02]} h5 {[%clk 00:08:54]} {[%emt 00:00:24]} 36.
g6 {[%clk 00:03:04]} {[%emt 00:00:42]} Qc8 {[%clk 00:08:25]} {[%emt 00:00:39]}
37. Qe6 {[%clk 00:02:32]} {[%emt 00:00:42]} Qd8 {[%clk 00:05:14]} {[%emt
00:03:22]} 38. f4 {[%clk 00:01:44]} {[%emt 00:00:57]} Qc8 {[%clk 00:03:15]}
{[%emt 00:02:09]} 39. Qxc8 {[%clk 00:01:27]} {[%emt 00:00:27]} Rxc8 {[%clk
00:03:24]} {[%emt 00:00:01]} 40. Rf7 {[%clk 00:01:36]} Kg8 {[%clk 00:03:30]}
{[%emt 00:00:04]} 41. f5 {[%clk 00:01:39]} {[%emt 00:00:07]} c6 {[%clk
00:03:32]} {[%emt 00:00:08]} 42. Kf4 {[%clk 00:01:16]} {[%emt 00:00:33]} cxd5
{[%clk 00:03:31]} {[%emt 00:00:11]} 43. Kg5 {[%clk 00:01:15]} {[%emt 00:00:11]}
Rd8 {[%clk 00:03:28]} {[%emt 00:00:13]} 44. Kxh5 {[%clk 00:01:12]} {[%emt
00:00:13]} d4 {[%clk 00:03:38]} {[%emt 00:00:01]} 45. Re7 {[%emt 00:00:13]} d3
{[%clk 00:03:41]} 46. Re1 {[%clk 00:01:23]} {[%emt 00:00:02]} d5 {[%clk
00:03:24]} {[%emt 00:00:27]} 47. Rd1 {[%clk 00:01:29]} {[%emt 00:00:03]} d4
{[%clk 00:03:30]} {[%emt 00:00:04]} 48. Rxd3 {[%clk 00:01:38]} {[%emt
00:00:02]} Rd5 {[%clk 00:03:39]} {[%emt 00:00:01]} 49. Kg5 {[%clk 00:01:45]}
{[%emt 00:00:03]} Kf8 {[%clk 00:03:46]} {[%emt 00:00:03]} 50. h5 {[%clk
00:01:47]} {[%emt 00:00:08]} b5 {[%clk 00:03:54]} {[%emt 00:00:03]} 51. Kf4
{[%clk 00:01:21]} {[%emt 00:00:35]} Ke7 {[%clk 00:04:01]} {[%emt 00:00:03]} 52.
Kg5 {[%clk 00:01:12]} {[%emt 00:00:19]} Kd6 {[%clk 00:03:20]} {[%emt 00:00:52]}
53. h6 {[%clk 00:01:12]} {[%emt 00:00:09]} gxh6+ {[%clk 00:03:24]} {[%emt
00:00:06]} 54. Kxh6 {[%clk 00:01:15]} {[%emt 00:00:07]} Rxf5 {[%clk 00:03:32]}
{[%emt 00:00:02]} 55. g7 {[%clk 00:01:24]} Rf1 {[%clk 00:03:32]} {[%emt
00:00:10]} 56. Rxd4+ {[%clk 00:01:23]} {[%emt 00:00:10]} Kc5 {[%clk 00:03:34]}
{[%emt 00:00:08]} 57. Rg4 {[%clk 00:01:31]} {[%emt 00:00:02]} Rf2 {[%clk
00:03:35]} {[%emt 00:00:10]} 58. g8=Q {[%clk 00:01:38]} {[%emt 00:00:04]} Rxb2
{[%clk 00:03:41]} {[%emt 00:00:04]} 59. Qc8+ {[%clk 00:01:45]} {[%emt
00:00:03]} Kd5 {[%clk 00:03:49]} {[%emt 00:00:02]} 60. Qd7+ {[%clk 00:01:54]}
{[%emt 00:00:01]} Kc5 {[%clk 00:03:57]} {[%emt 00:00:01]} 61. Qf5+ {[%clk
00:02:01]} {[%emt 00:00:03]} Kd6 {[%clk 00:04:03]} {[%emt 00:00:05]} 62. Rg6+
{[%clk 00:02:10]} {[%emt 00:00:01]} Ke7 {[%clk 00:04:12]} 63. Qe6+ {[%clk
00:02:18]} {[%emt 00:00:01]} Kd8 {[%clk 00:04:20]} {[%emt 00:00:02]} 64. Rg8+
{[%clk 00:02:26]} {[%emt 00:00:02]} Kc7 {[%clk 00:04:29]} {[%emt 00:00:02]} 65.
Rc8+ {[%clk 00:02:34]} {[%emt 00:00:01]} Kb7 {[%clk 00:04:36]} {[%emt
00:00:03]} 66. Qc6+ {[%clk 00:02:44]} Ka7 {[%clk 00:04:44]} {[%emt 00:00:01]}
67. Ra8# {[%clk 00:02:41]} 1-0

[Event "Manhemjunioren 2024"]
[Site "Goteborgs Schackcentrum, Vegatan 20, Gothenburg, Sweden"]
[Date "2024.04.06"]
[Round "5.3"]
[White "Bergdahl, Daniel"]
[Black "Madevan Vaishnavi, Yaashvan"]
[Result "0-1"]
[TimeControl "18 minutes + 10 seconds per move from move one."]
[WhiteFideId "1780921"]
[BlackFideId "1772180"]
[WhiteElo "1627"]
[BlackElo "1670"]

1. e4 {[%clk 00:18:18]} {[%emt 00:00:02]} c5 {[%clk 00:18:20]} {[%emt
00:00:01]} 2. d4 {[%clk 00:18:27]} {[%emt 00:00:01]} cxd4 {[%clk 00:18:27]}
{[%emt 00:00:02]} 3. c3 {[%clk 00:18:36]} dxc3 {[%clk 00:18:29]} {[%emt
00:00:08]} 4. Nxc3 {[%clk 00:18:44]} {[%emt 00:00:02]} Nc6 {[%clk 00:18:35]}
{[%emt 00:00:05]} 5. Bc4 {[%clk 00:18:52]} {[%emt 00:00:02]} g6 {[%clk
00:18:32]} {[%emt 00:00:13]} 6. Nf3 {[%clk 00:19:00]} {[%emt 00:00:02]} Bg7
{[%clk 00:18:36]} {[%emt 00:00:06]} 7. O-O {[%clk 00:18:35]} {[%emt 00:00:34]}
Nf6 {[%clk 00:18:42]} {[%emt 00:00:03]} 8. h3 {[%clk 00:18:32]} {[%emt
00:00:14]} O-O {[%clk 00:18:41]} {[%emt 00:00:11]} 9. e5 {[%clk 00:18:39]}
{[%emt 00:00:03]} Ne8 {[%clk 00:18:38]} {[%emt 00:00:13]} 10. Re1 {[%clk
00:18:00]} {[%emt 00:00:49]} Nc7 {[%clk 00:18:38]} {[%emt 00:00:10]} 11. Bf4
{[%clk 00:17:44]} {[%emt 00:00:25]} b6 {[%clk 00:18:06]} {[%emt 00:00:43]} 12.
Qd2 {[%clk 00:17:30]} {[%emt 00:00:23]} Bb7 {[%clk 00:17:52]} {[%emt 00:00:25]}
13. Bh6 {[%clk 00:17:38]} {[%emt 00:00:02]} Ne6 {[%clk 00:17:57]} {[%emt
00:00:05]} 14. Bxe6 {[%clk 00:17:14]} {[%emt 00:00:33]} dxe6 {[%clk 00:17:57]}
{[%emt 00:00:10]} 15. Bxg7 {[%clk 00:16:57]} {[%emt 00:00:25]} Qxd2 {[%clk
00:17:46]} {[%emt 00:00:23]} 16. Nxd2 {[%clk 00:17:05]} {[%emt 00:00:02]} Kxg7
{[%clk 00:17:53]} {[%emt 00:00:02]} 17. Nc4 {[%clk 00:17:02]} {[%emt 00:00:12]}
Rfd8 {[%clk 00:17:53]} {[%emt 00:00:11]} 18. Rad1 {[%clk 00:17:07]} {[%emt
00:00:05]} Ba6 {[%clk 00:17:49]} {[%emt 00:00:13]} 19. Rxd8 {[%clk 00:16:48]}
{[%emt 00:00:28]} Rxd8 {[%clk 00:17:57]} {[%emt 00:00:03]} 20. b3 {[%clk
00:16:32]} {[%emt 00:00:27]} Bxc4 {[%clk 00:18:00]} {[%emt 00:00:07]} 21. bxc4
{[%clk 00:16:40]} {[%emt 00:00:02]} Rd4 {[%clk 00:18:01]} {[%emt 00:00:08]} 22.
c5 {[%clk 00:16:25]} {[%emt 00:00:25]} bxc5 {[%clk 00:17:51]} {[%emt 00:00:20]}
23. Ne4 {[%clk 00:16:31]} {[%emt 00:00:04]} c4 {[%clk 00:17:35]} {[%emt
00:00:27]} 24. Ng3 {[%clk 00:16:15]} {[%emt 00:00:25]} c3 {[%clk 00:17:35]}
{[%emt 00:00:11]} 25. Ne2 {[%clk 00:16:24]} Rc4 {[%clk 00:17:32]} {[%emt
00:00:12]} 26. Rc1 {[%clk 00:16:31]} {[%emt 00:00:03]} Nxe5 {[%clk 00:17:37]}
{[%emt 00:00:06]} 27. Rxc3 {[%clk 00:16:36]} {[%emt 00:00:04]} Ra4 {[%clk
00:17:13]} {[%emt 00:00:33]} 28. Rc7 {[%clk 00:16:35]} {[%emt 00:00:12]} Rxa2
{[%clk 00:17:19]} {[%emt 00:00:05]} 29. Nc3 {[%clk 00:16:43]} {[%emt 00:00:02]}
Rc2 {[%clk 00:17:15]} {[%emt 00:00:13]} 30. Nb5 {[%clk 00:16:52]} {[%emt
00:00:01]} Rxc7 {[%clk 00:17:20]} {[%emt 00:00:05]} 31. Nxc7 {[%clk 00:17:01]}
0-1

[Event "Manhemjunioren 2024"]
[Site "Goteborgs Schackcentrum, Vegatan 20, Gothenburg, Sweden"]
[Date "2024.04.06"]
[Round "5.4"]
[White "Bergdahl, Martin"]
[Black "Back, Arvid"]
[Result "1-0"]
[TimeControl "18 minutes + 10 seconds per move from move one."]
[WhiteFideId "1782231"]
[BlackFideId "1772821"]
[WhiteElo "1533"]
[BlackElo "1512"]

1. e4 {[%clk 00:18:19]} {[%emt 00:00:01]} e5 {[%clk 00:18:20]} {[%emt
00:00:01]} 2. f4 {[%clk 00:18:28]} d6 {[%clk 00:18:28]} {[%emt 00:00:02]} 3.
Nf3 {[%clk 00:18:35]} {[%emt 00:00:02]} Bg4 {[%clk 00:18:36]} {[%emt 00:00:03]}
4. Bc4 {[%clk 00:18:44]} {[%emt 00:00:02]} Nf6 {[%clk 00:18:37]} {[%emt
00:00:08]} 5. O-O {[%clk 00:18:51]} {[%emt 00:00:03]} exf4 {[%clk 00:18:39]}
{[%emt 00:00:08]} 6. d3 {[%clk 00:18:50]} {[%emt 00:00:11]} d5 {[%clk
00:18:46]} {[%emt 00:00:03]} 7. exd5 {[%clk 00:18:53]} {[%emt 00:00:07]} Nxd5
{[%clk 00:18:54]} {[%emt 00:00:02]} 8. Bxd5 {[%clk 00:18:57]} {[%emt 00:00:06]}
Qxd5 {[%clk 00:19:01]} {[%emt 00:00:02]} 9. Bxf4 {[%clk 00:19:02]} {[%emt
00:00:05]} Bc5+ {[%clk 00:19:04]} {[%emt 00:00:07]} 10. Kh1 {[%clk 00:19:06]}
{[%emt 00:00:06]} Bd6 {[%clk 00:19:02]} {[%emt 00:00:12]} 11. Bxd6 {[%clk
00:19:11]} {[%emt 00:00:05]} Qxd6 {[%clk 00:19:11]} {[%emt 00:00:01]} 12. Re1+
{[%clk 00:19:10]} {[%emt 00:00:11]} Kd7 {[%clk 00:19:12]} {[%emt 00:00:09]} 13.
Ne5+ {[%clk 00:19:15]} {[%emt 00:00:05]} Kc8 {[%clk 00:16:47]} {[%emt
00:02:36]} 14. Qxg4+ {[%clk 00:19:22]} {[%emt 00:00:03]} Nd7 {[%clk 00:16:34]}
{[%emt 00:00:23]} 15. Nxf7 {[%clk 00:19:24]} {[%emt 00:00:07]} Qf8 {[%clk
00:14:37]} {[%emt 00:02:08]} 16. Nxh8 {[%clk 00:19:29]} {[%emt 00:00:04]} Qxh8
{[%clk 00:14:46]} {[%emt 00:00:02]} 17. Qxg7 {[%clk 00:19:38]} {[%emt
00:00:01]} Qd8 {[%clk 00:14:12]} {[%emt 00:00:44]} 18. Qf7 {[%clk 00:19:39]}
{[%emt 00:00:06]} Nf6 {[%clk 00:13:54]} {[%emt 00:00:30]} 19. Qe6+ {[%clk
00:19:32]} {[%emt 00:00:18]} Kb8 {[%clk 00:13:46]} {[%emt 00:00:18]} 20. Qxf6
{[%clk 00:19:38]} {[%emt 00:00:04]} Qc8 {[%clk 00:13:04]} {[%emt 00:00:52]} 21.
Qf7 {[%clk 00:19:45]} {[%emt 00:00:02]} a6 {[%clk 00:12:50]} {[%emt 00:00:25]}
22. Re7 {[%emt 00:00:03]} Qd8 23. Re8 {[%clk 00:19:49]} Qxe8 {[%clk 00:12:58]}
{[%emt 00:00:05]} 24. Qxe8+ {[%clk 00:19:58]} Ka7 {[%clk 00:13:07]} {[%emt
00:00:02]} 25. Qe3+ {[%clk 00:20:05]} {[%emt 00:00:03]} b6 {[%clk 00:13:16]}
{[%emt 00:00:01]} 26. Qe7 {[%clk 00:20:14]} {[%emt 00:00:01]} Kb7 {[%clk
00:13:24]} {[%emt 00:00:02]} 27. Qe4+ {[%clk 00:20:22]} {[%emt 00:00:02]} Ka7
{[%clk 00:13:33]} {[%emt 00:00:02]} 28. Nc3 {[%clk 00:20:31]} {[%emt 00:00:01]}
Rf8 {[%clk 00:13:38]} {[%emt 00:00:04]} 29. Qe7 {[%clk 00:20:34]} {[%emt
00:00:06]} Rc8 {[%clk 00:13:42]} {[%emt 00:00:07]} 30. Nd5 {[%clk 00:20:43]}
{[%emt 00:00:01]} Kb7 {[%clk 00:13:49]} {[%emt 00:00:02]} 31. Qe4 {[%clk
00:20:51]} {[%emt 00:00:02]} Ka7 {[%clk 00:13:55]} {[%emt 00:00:05]} 32. a4
{[%clk 00:20:59]} {[%emt 00:00:03]} a5 {[%clk 00:13:56]} {[%emt 00:00:08]} 33.
b4 {[%clk 00:21:07]} {[%emt 00:00:02]} h6 {[%clk 00:13:54]} {[%emt 00:00:12]}
34. bxa5 {[%clk 00:21:14]} {[%emt 00:00:03]} bxa5 {[%clk 00:13:58]} {[%emt
00:00:06]} 35. Rb1 {[%clk 00:21:22]} Rf8 {[%clk 00:13:54]} {[%emt 00:00:15]} 36.
Qd4+ {[%clk 00:21:29]} {[%emt 00:00:03]} Ka6 {[%clk 00:14:00]} {[%emt
00:00:04]} 37. Nxc7# {[%clk 00:21:37]} {[%emt 00:00:02]} 1-0